bitfinex-derivatives/quotes_BTCF0:USTF0_20251103
["timestamp","ask_amount","ask_price","bid_price","bid_amount"]
[1762213641877,0.63818838,106600.0,106590.0,0.001]
[1762213642072,0.96246838,106600.0,106590.0,0.001]
[1762213642479,0.98548145,106600.0,106590.0,0.001]
[1762213643674,0.60166838,106600.0,106590.0,0.001]
[1762213643874,0.62467572,106600.0,106590.0,0.001]
[1762213644075,0.98547572,106600.0,106590.0,0.001]
[1762213644385,1.14841166,106600.0,106590.0,0.001]
[1762213644580,1.14743447,106600.0,106590.0,0.001]
[1762213644883,0.1517676,106590.0,106580.0,0.00309612]
[1762213645076,0.33784594,106590.0,106580.0,0.00309612]
[1762213645871,0.69864594,106590.0,106580.0,0.00409612]
[1762213648080,0.5125676,106590.0,106580.0,0.00409612]
[1762213648276,0.72166393,106590.0,106580.0,0.00409612]
[1762213651984,0.72166393,106590.0,106560.0,0.6854]
[1762213651985,0.24321437,106570.0,106560.0,0.6854]
[1762213652486,0.24321437,106570.0,106560.0,0.779264]
[1762213652881,0.24321437,106570.0,106560.0,0.87230317]
[1762213653087,0.24321437,106570.0,106560.0,0.87430317]
[1762213654387,0.03455,106580.0,106570.0,0.0938552]
[1762213654581,0.1068864,106580.0,106570.0,0.45383917]
[1762213654885,0.33624474,106580.0,106570.0,0.3608]
[1762213655685,0.150184,106560.0,106550.0,0.3608]
[1762213655884,0.24322317,106560.0,106550.0,0.87275197]
[1762213656185,0.24322317,106560.0,106550.0,0.7797128]
[1762213656789,0.150184,106560.0,106550.0,0.87275197]
[1762213656996,0.24322317,106560.0,106550.0,0.87275197]
[1762213657280,0.24322317,106560.0,106550.0,0.7797128]
[1762213657281,0.33626234,106560.0,106550.0,0.7797128]
[1762213657488,0.24322317,106560.0,106550.0,0.68684]
[1762213658180,0.33626234,106560.0,106550.0,0.68688]
[1762213658676,0.24322317,106560.0,106550.0,0.68688]
[1762213658979,0.24322317,106560.0,106550.0,0.7807528]
[1762213659180,0.24322317,106560.0,106550.0,0.68688]
[1762213659380,0.33626234,106560.0,106550.0,0.68688]
[1762213659785,0.24322317,106560.0,106550.0,0.68688]
[1762213660089,0.33626234,106560.0,106550.0,0.68688]
[1762213660994,0.24322317,106560.0,106550.0,0.7807528]
[1762213661383,0.24322317,106560.0,106550.0,0.87379197]
[1762213661384,0.03455,106560.0,106550.0,0.87379197]
[1762213661586,0.01304,106560.0,106550.0,0.87379197]
[1762213661789,0.24322317,106560.0,106550.0,0.87379197]
[1762213662794,0.150184,106560.0,106550.0,0.87379197]
[1762213663698,0.24322317,106560.0,106550.0,0.87379197]
[1762213664599,0.150184,106560.0,106550.0,0.87379197]
[1762213665296,0.05632,106560.0,106550.0,0.87379197]
[1762213665494,0.03481,106560.0,106550.0,0.87379197]
[1762213665693,0.152681,106570.0,106560.0,0.093864]
[1762213665890,0.24572017,106570.0,106560.0,0.54770317]
[1762213667394,0.24572017,106570.0,106560.0,0.3608]
[1762213668396,0.33875934,106570.0,106560.0,0.68572]
[1762213668598,0.26878824,106570.0,106560.0,0.68572]
[1762213670497,0.17574907,106570.0,106560.0,0.68572]
[1762213670806,0.26878824,106570.0,106560.0,0.68572]
[1762213676101,0.26878824,106570.0,106560.0,0.7795841]
[1762213676400,0.26878824,106570.0,106560.0,0.68572]
[1762213678091,0.26878824,106570.0,106560.0,0.87262317]
[1762213678700,0.03634,106570.0,106560.0,0.96566234]
[1762213678905,0.24570597,106580.0,106570.0,0.0938552]
[1762213679204,0.26881084,106580.0,106570.0,0.3608]
[1762213679404,0.26881084,106580.0,106570.0,0.4546552]
[1762213679795,0.26881084,106580.0,106570.0,0.54769437]
[1762213680699,0.11795167,106580.0,106570.0,0.54769437]
[1762213680904,0.0948468,106580.0,106570.0,0.54769437]
[1762213681099,0.1535568,106580.0,106570.0,0.54769437]
[1762213681301,0.24659597,106580.0,106570.0,0.45383917]
[1762213681498,0.33963514,106580.0,106570.0,0.3608]
[1762213681693,0.1525652,106570.0,106560.0,0.3608]
[1762213681910,0.24560437,106570.0,106560.0,0.68556]
[1762213682199,0.24560437,106570.0,106560.0,0.779424]
[1762213682900,0.24560437,106570.0,106560.0,0.77859917]
[1762213683104,0.24560437,106570.0,106560.0,0.68556]
[1762213684609,0.24560437,106570.0,106560.0,0.779424]
[1762213684802,0.01293,106570.0,106560.0,0.87246317]
[1762213685207,0.03623,106570.0,106560.0,0.87246317]
[1762213685409,0.05871,106570.0,106560.0,0.87246317]
[1762213686404,0.24560437,106570.0,106560.0,0.87246317]
[1762213687315,0.24560437,106570.0,106560.0,0.779424]
[1762213688207,0.24560437,106570.0,106560.0,0.87246317]
[1762213688404,0.1525652,106570.0,106560.0,0.779424]
[1762213689116,0.1525652,106570.0,106560.0,0.68556]
[1762213689303,0.1525652,106570.0,106560.0,0.779424]
[1762213689508,0.1525652,106570.0,106560.0,0.68556]
[1762213689704,0.24561223,106570.0,106560.0,0.68556]
[1762213690108,0.24561223,106570.0,106560.0,0.779424]
[1762213690712,0.1525652,106570.0,106560.0,0.779424]
[1762213693109,0.1525652,106570.0,106560.0,0.779264]
[1762213695111,0.05871,106570.0,106560.0,0.779264]
[1762213695422,0.24561223,106570.0,106560.0,0.779264]
[1762213697011,0.152784,106560.0,106550.0,0.4279783]
[1762213697318,0.33887806,106560.0,106550.0,0.68532]
[1762213697817,0.24583103,106560.0,106550.0,0.68532]
[1762213698012,0.1073727,106550.0,106540.0,0.43115399]
[1762213698218,0.24583973,106550.0,106540.0,0.75567399]
[1762213698609,0.24583973,106550.0,106540.0,0.84955549]
[1762213699117,0.24483973,106550.0,106540.0,0.84955549]
[1762213699816,0.24483973,106550.0,106540.0,0.78437719]
[1762213701015,0.24483973,106550.0,106540.0,0.43315399]
[1762213701206,0.62864755,106550.0,106540.0,0.00517569]
[1762213701411,0.62864755,106550.0,106540.0,0.32973569]
[1762213702016,0.62864755,106550.0,106540.0,0.00517569]
[1762213702217,0.62864755,106550.0,106540.0,0.00317569]
[1762213703117,0.63795536,106550.0,106540.0,0.00317569]
[1762213705426,0.1528192,106520.0,106510.0,0.3608]
[1762213705610,0.05892,106520.0,106510.0,0.779228]
[1762213705815,0.049761,106520.0,106510.0,0.79785767]
[1762213706015,0.1436602,106520.0,106510.0,0.79785767]
[1762213706212,0.1436602,106520.0,106510.0,0.784568]
[1762213706421,0.14374494,106520.0,106510.0,0.784568]
[1762213706815,0.14374494,106520.0,106510.0,0.787568]
[1762213708129,0.04984574,106520.0,106510.0,0.787568]
[1762213708820,0.14374494,106520.0,106510.0,0.787568]
[1762213710717,0.14374494,106520.0,106510.0,0.787488]
[1762213711324,8.474e-05,106520.0,106510.0,0.787488]
[1762213711519,8.474e-05,106520.0,106510.0,1.11525503]
[1762213711724,4.74e-06,106520.0,106510.0,1.18243333]
[1762213713019,0.09390394,106520.0,106510.0,0.88053503]
[1762213713527,4.74e-06,106520.0,106510.0,0.87519503]
[1762213714423,0.09390394,106520.0,106510.0,0.87519503]
[1762213714622,0.09390394,106520.0,106510.0,0.88037503]
[1762213714924,4.74e-06,106520.0,106510.0,1.10991503]
[1762213716318,0.03653,106540.0,106530.0,0.0990704]
[1762213716514,0.1519816,106540.0,106530.0,1.1451504]
[1762213717522,0.1519816,106540.0,106530.0,1.1461504]
[1762213718028,0.0581,106540.0,106530.0,1.1461504]
[1762213718229,0.1519816,106540.0,106530.0,1.1461504]
[1762213718731,0.0581,106540.0,106530.0,1.1461504]
[1762213719229,0.1073782,106550.0,106530.0,1.1461504]
[1762213719434,0.1073782,106550.0,106540.0,0.36598]
[1762213719435,0.1519782,106550.0,106540.0,0.36598]
[1762213719619,0.24502523,106550.0,106540.0,0.4598616]
[1762213719821,0.24502523,106550.0,106540.0,0.36598]
[1762213720033,0.24502523,106550.0,106540.0,0.00518]
[1762213721230,0.24502523,106550.0,106540.0,0.00259]
[1762213721532,0.1519616,106540.0,106530.0,0.69046]
[1762213721722,0.24500863,106540.0,106530.0,0.69046]
[1762213721924,0.24500863,106540.0,106530.0,0.32448]
[1762213722422,0.24500863,106540.0,106530.0,0.32707]
[1762213722627,0.24500863,106540.0,106530.0,0.32807]
[1762213722827,0.24500863,106540.0,106530.0,0.33066]
[1762213723525,0.24500863,106540.0,106530.0,0.32807]
[1762213724231,0.24500863,106540.0,106530.0,0.33066]
[1762213724831,0.05808,106540.0,106530.0,0.4245504]
[1762213725034,0.1519616,106540.0,106530.0,0.69146]
[1762213725728,0.24500863,106540.0,106530.0,0.69146]
[1762213725919,0.24500863,106540.0,106530.0,0.7853504]
[1762213726435,0.24500863,106540.0,106530.0,0.69146]
[1762213731134,0.24500863,106540.0,106530.0,0.7853505]
[1762213731339,0.1519616,106540.0,106530.0,0.7853505]
[1762213732225,0.24500863,106540.0,106530.0,0.7853505]
[1762213733232,0.1519616,106540.0,106530.0,0.7853505]
[1762213734233,0.24500863,106540.0,106530.0,0.7853505]
[1762213735632,0.24500863,106540.0,106530.0,0.7853504]
[1762213736926,0.03651,106540.0,106530.0,0.7853504]
[1762213737126,0.20042543,106550.0,106540.0,0.0990616]
[1762213737127,0.05797,106550.0,106540.0,0.0990616]
[1762213737326,0.16136572,106560.0,106550.0,0.0990528]
[1762213737533,0.16136572,106560.0,106550.0,0.7842128]
[1762213737836,0.25441275,106560.0,106550.0,0.7842128]
[1762213738037,0.25441275,106560.0,106550.0,0.69034]
[1762213738441,0.27748678,106560.0,106550.0,0.69034]
[1762213738940,0.27848678,106560.0,106550.0,0.7842128]
[1762213739934,0.25541275,106560.0,106550.0,0.69034]
[1762213740139,0.27848338,106560.0,106550.0,0.69034]
[1762213740342,0.37153041,106560.0,106550.0,0.32954]
[1762213740927,0.1514728,106550.0,106540.0,0.69034]
[1762213741128,0.24451983,106550.0,106540.0,0.69034]
[1762213741333,0.24451983,106550.0,106540.0,0.68516]
[1762213741532,0.24451983,106550.0,106540.0,0.68775]
[1762213741845,0.24451983,106550.0,106540.0,0.69034]
[1762213742229,0.24451983,106550.0,106540.0,0.00518]
[1762213743841,0.26751126,106550.0,106540.0,0.00518]
[1762213747346,0.1514817,106540.0,106530.0,0.69034]
[1762213747547,0.24452873,106540.0,106530.0,0.69034]
[1762213747747,0.24452873,106540.0,106530.0,0.7842305]
[1762213748552,0.24452873,106540.0,106530.0,0.69134]
[1762213750440,0.33772824,106540.0,106530.0,0.69134]
[1762213751049,0.33772824,106540.0,106530.0,0.7852306]
[1762213751547,0.33772824,106540.0,106530.0,0.69134]
[1762213751747,0.33772824,106540.0,106530.0,0.7852305]
[1762213752156,0.33772824,106540.0,106530.0,0.69134]
[1762213752648,0.33772824,106540.0,106530.0,0.33054]
[1762213752853,0.79165151,106540.0,106530.0,0.001]
[1762213753046,0.81464799,106540.0,106530.0,0.001]
[1762213753347,0.72152472,106540.0,106530.0,0.001]
[1762213753944,0.72152472,106540.0,106520.0,0.7842392]
[1762213753945,0.1514905,106530.0,106520.0,0.7842392]
[1762213754138,0.33773704,106530.0,106520.0,0.7842392]
[1762213754643,0.33773704,106530.0,106520.0,0.69034]
[1762213755541,0.33773704,106530.0,106520.0,0.7842394]
[1762213755942,0.33773704,106530.0,106520.0,0.7852394]
[1762213756645,0.1514905,106530.0,106520.0,0.7852394]
[1762213757042,0.24461377,106530.0,106520.0,0.7852394]
[1762213757446,0.33773704,106530.0,106520.0,0.69134]
[1762213758050,0.33773704,106530.0,106520.0,0.7852394]
[1762213758349,0.33773704,106530.0,106520.0,0.69134]
[1762213758752,0.33773704,106530.0,106520.0,0.7852393]
[1762213759748,0.24461377,106530.0,106520.0,0.7852393]
[1762213762354,0.24461377,106530.0,106520.0,0.69134]
[1762213763453,0.24461377,106530.0,106520.0,0.7852394]
[1762213768052,0.33773704,106530.0,106520.0,0.7852394]
[1762213768257,0.24461377,106530.0,106520.0,0.7852394]
[1762213771760,0.33773704,106530.0,106520.0,0.7852394]
[1762213772263,0.24461377,106530.0,106520.0,0.7852394]
[1762213772458,0.1511728,106540.0,106530.0,0.0990706]
[1762213772655,0.24429507,106540.0,106530.0,0.4598706]
[1762213772855,0.33741834,106540.0,106530.0,0.4598706]
[1762213774151,0.37393,106550.0,106540.0,0.0938817]
[1762213774350,0.52185572,106560.0,106550.0,0.0990529]
[1762213774556,0.360623,106560.0,106550.0,0.4598529]
[1762213774955,0.17362933,106560.0,106550.0,0.55297617]
[1762213775159,0.15076327,106560.0,106550.0,0.55297617]
[1762213775754,0.15076327,106560.0,106550.0,0.19217617]
[1762213775954,0.24662737,106560.0,106550.0,0.19217617]
[1762213776157,0.15276327,106560.0,106550.0,0.19217617]
[1762213776358,0.15276327,106560.0,106550.0,0.55297617]
[1762213776865,0.002,106560.0,106550.0,0.56219472]
[1762213777259,0.09512327,106560.0,106550.0,0.56219472]
[1762213777460,0.002,106560.0,106550.0,0.86401302]
[1762213777767,0.05773,106580.0,106570.0,0.0990352]
[1762213778062,0.05773,106580.0,106570.0,0.87731847]
[1762213778268,0.15085327,106580.0,106570.0,0.87731847]
[1762213778458,0.15085327,106580.0,106570.0,0.7841952]
[1762213778651,0.15085327,106580.0,106570.0,0.87731847]
[1762213778857,0.15485327,106580.0,106570.0,0.87731847]
[1762213779256,0.01757,106580.0,106570.0,0.87731847]
[1762213779452,0.004,106580.0,106570.0,0.87731847]
[1762213779662,0.004,106580.0,106570.0,1.23811847]
[1762213780057,0.10669327,106600.0,106590.0,0.00259]
[1762213780359,0.33780544,106600.0,106590.0,0.7841376]
[1762213780963,0.33780544,106600.0,106590.0,0.3295]
[1762213781259,0.1515677,106590.0,106580.0,0.36598]
[1762213781465,0.24469097,106590.0,106580.0,0.6903]
[1762213782757,0.24569097,106590.0,106580.0,0.7841464]
[1762213783163,0.33881424,106590.0,106580.0,0.3295]
[1762213783359,0.33881424,106590.0,106580.0,0.32946]
[1762213783963,0.33881424,106590.0,106580.0,0.4233064]
[1762213784266,0.33881424,106590.0,106580.0,0.32946]
[1762213785267,0.33881424,106590.0,106580.0,0.4233064]
[1762213785665,0.24569097,106590.0,106580.0,0.4233064]
[1762213786363,0.33881424,106590.0,106580.0,0.32946]
[1762213786771,0.33881424,106590.0,106580.0,0.4233065]
[1762213787161,0.24569097,106590.0,106580.0,0.4233065]
[1762213787562,0.24569097,106590.0,106580.0,0.32946]
[1762213787763,0.33881424,106590.0,106580.0,0.32946]
[1762213788859,0.33881424,106590.0,106580.0,0.4233064]
[1762213789267,0.24569097,106590.0,106580.0,0.32946]
[1762213789659,0.33881424,106590.0,106580.0,0.32946]
[1762213790572,0.33881424,106590.0,106580.0,0.00259]
[1762213790774,0.33881424,106590.0,106570.0,0.00518]
[1762213790775,0.1510364,106580.0,106570.0,0.00518]
[1762213790973,0.33728294,106580.0,106570.0,0.32942]
[1762213791172,0.33728294,106580.0,106570.0,0.00518]
[1762213792780,0.33728294,106580.0,106570.0,0.0990353]
[1762213793670,0.33728294,106580.0,106570.0,0.1000353]
[1762213797179,0.33728294,106580.0,106570.0,0.4608353]
[1762213800375,0.33728294,106580.0,106570.0,0.1000353]
[1762213800972,0.33728294,106580.0,106570.0,0.4608353]
[1762213801380,0.33728294,106580.0,106570.0,0.1000353]
[1762213803077,0.33728294,106580.0,106570.0,0.00618]
[1762213803280,0.33728294,106580.0,106570.0,0.1000353]
[1762213803773,0.36023441,106580.0,106570.0,0.1000353]
[1762213804482,0.26711114,106580.0,106570.0,0.19315857]
[1762213804780,0.15031327,106580.0,106570.0,0.55395857]
[1762213806185,0.24415977,106580.0,106570.0,0.55395857]
[1762213806385,0.24415977,106580.0,106570.0,0.4608353]
[1762213806878,0.33728304,106580.0,106570.0,0.36698]
[1762213807081,0.33728304,106580.0,106570.0,0.001]
[1762213807281,0.69808304,106580.0,106570.0,0.001]
[1762213807476,0.72106243,106580.0,106570.0,0.001]
[1762213808387,0.8141857,106580.0,106570.0,0.001]
[1762213808592,0.1510541,106560.0,106550.0,0.69025832]
[1762213808776,0.69810064,106560.0,106550.0,0.00525832]
[1762213809281,0.72108399,106560.0,106550.0,0.00525832]
[1762213809678,0.72108399,106560.0,106550.0,0.00825832]
[1762213810384,0.62794001,106560.0,106550.0,0.00825832]
[1762213810581,0.72104257,106560.0,106550.0,0.09695122]
[1762213810781,0.72104257,106560.0,106550.0,0.00307832]
[1762213810981,0.72104257,106560.0,106550.0,0.00566832]
[1762213811174,0.62794001,106560.0,106550.0,0.00825832]
[1762213811372,0.62794001,106560.0,106550.0,0.00307832]
[1762213811572,0.72104257,106560.0,106550.0,0.00825832]
[1762213811790,0.53407591,106560.0,106550.0,0.10213122]
[1762213812178,0.62794001,106560.0,106550.0,0.09913122]
[1762213812886,0.05719,106560.0,106550.0,0.45993122]
[1762213813585,0.24415666,106560.0,106550.0,0.00525832]
[1762213813888,0.24415666,106560.0,106550.0,0.09913122]
[1762213815495,0.24415666,106560.0,106550.0,0.00525832]
[1762213815889,0.36022064,106560.0,106550.0,0.00525832]
[1762213816184,0.33725922,106560.0,106550.0,0.00266832]
[1762213816787,0.24415666,106560.0,106550.0,0.00266832]
[1762213817088,0.24415666,106560.0,106550.0,0.09913122]
[1762213818076,0.24415666,106560.0,106550.0,0.00525832]
[1762213818289,0.60495666,106560.0,106550.0,0.00266832]
[1762213818685,0.60495666,106560.0,106550.0,0.00525832]
[1762213818885,0.62792182,106560.0,106550.0,0.00525832]
[1762213819285,0.26712182,106560.0,106550.0,0.00525832]
[1762213819880,0.36022438,106560.0,106550.0,7.832e-05]
[1762213820076,0.1510217,106540.0,106530.0,0.4600229]
[1762213820281,0.24412426,106540.0,106530.0,0.7842629]
[1762213820782,0.03498,106550.0,106540.0,0.0992217]
[1762213820983,0.05714,106550.0,106540.0,0.55312426]
[1762213821181,0.05721832,106550.0,106540.0,0.4600217]
[1762213821386,0.15109122,106550.0,106540.0,0.4600217]
[1762213821985,0.05721832,106550.0,106540.0,0.4600217]
[1762213822289,0.15109122,106550.0,106540.0,0.4600217]
[1762213822689,0.05721832,106550.0,106540.0,0.4600217]
[1762213823983,0.01274832,106550.0,106540.0,0.55312426]
[1762213824188,0.01274832,106550.0,106540.0,0.55579426]
[1762213824189,7.832e-05,106550.0,106540.0,0.55579426]
[1762213824383,0.09395122,106550.0,106540.0,0.55579426]
[1762213824588,0.05721832,106550.0,106540.0,0.4600217]
[1762213824988,0.05721832,106550.0,106540.0,0.55312426]
[1762213825587,0.15109122,106550.0,106540.0,0.4600217]
[1762213825790,0.05721832,106550.0,106540.0,0.4600217]
[1762213826182,0.15109122,106550.0,106540.0,0.4600217]
[1762213828793,0.05721832,106550.0,106540.0,0.4600217]
[1762213829090,0.05721832,106550.0,106540.0,0.55312426]
[1762213831899,0.01288,106560.0,106550.0,0.00534]
[1762213832114,0.05555,106560.0,106550.0,0.87735546]
[1762213832610,0.05555,106560.0,106550.0,0.94423075]
[1762213832913,0.05555,106560.0,106550.0,0.87735546]
[1762213836916,0.1494116,106570.0,106560.0,0.00534]
[1762213837104,0.1494116,106570.0,106560.0,0.36614]
[1762213837616,0.24251416,106570.0,106560.0,0.36614]
[1762213837918,0.24251416,106570.0,106560.0,0.72694]
[1762213838313,0.1494116,106570.0,106560.0,0.72694]
[1762213838514,0.1494116,106570.0,106560.0,0.8208041]
[1762213838913,0.24251416,106570.0,106560.0,0.8208041]
[1762213842208,0.24251416,106570.0,106560.0,0.72694]
[1762213842810,0.24251416,106570.0,106560.0,0.8208041]
[1762213843022,0.24251416,106570.0,106560.0,0.36614]
[1762213843216,0.1067077,106560.0,106550.0,0.36614]
[1762213843412,0.33558282,106560.0,106550.0,0.69034]
[1762213844221,0.24248026,106560.0,106550.0,0.32687]
[1762213844617,0.02252,106550.0,106540.0,0.36347]
[1762213844818,0.1508618,106540.0,106530.0,0.52690469]
[1762213845029,0.24396436,106540.0,106530.0,0.7842294]
[1762213845219,0.15008256,106540.0,106530.0,0.7842294]
[1762213845420,0.0356,106550.0,106540.0,0.0965518]
[1762213845726,0.150853,106550.0,106540.0,0.4600218]
[1762213845925,0.24395556,106550.0,106540.0,0.4600218]
[1762213847324,0.24395556,106550.0,106540.0,0.4600217]
[1762213848120,0.150853,106550.0,106540.0,0.4600217]
[1762213848327,0.05698,106550.0,106540.0,0.4600217]
[1762213849128,0.1508529,106550.0,106540.0,0.4600217]
[1762213849525,0.05698,106550.0,106540.0,0.4600217]
[1762213850619,0.1508529,106550.0,106540.0,0.4600217]
[1762213851129,0.24395546,106550.0,106540.0,0.4600217]
[1762213852128,0.1508529,106550.0,106540.0,0.4600217]
[1762213852323,0.05698,106550.0,106540.0,0.4600217]
[1762213852719,0.05698,106550.0,106540.0,0.55312426]
[1762213852923,0.1508529,106550.0,106540.0,0.4600217]
[1762213860038,0.1508529,106550.0,106540.0,0.36614]
[1762213860233,0.1508529,106550.0,106540.0,0.4600217]
[1762213862140,0.05698,106550.0,106540.0,0.4600217]
[1762213862840,0.24395536,106550.0,106540.0,0.4600216]
[1762213864640,0.24395536,106550.0,106540.0,0.36614]
[1762213864848,0.24395536,106550.0,106540.0,0.00534]
[1762213865144,0.24395536,106550.0,106540.0,0.32954]
[1762213865747,0.1508528,106550.0,106540.0,0.4234217]
[1762213865940,0.24395536,106550.0,106540.0,0.4234217]
[1762213866844,0.24395536,106550.0,106540.0,0.32954]
[1762213867944,0.24395536,106550.0,106540.0,0.32687]
[1762213868538,0.24395536,106550.0,106540.0,0.4234217]
[1762213868942,0.24395536,106550.0,106540.0,0.32954]
[1762213869538,0.26698619,106550.0,106540.0,0.32954]
[1762213869737,0.24395536,106550.0,106540.0,0.32687]
[1762213870137,0.31735546,106550.0,106540.0,0.00267]
[1762213870439,0.1508705,106530.0,106520.0,0.32954]
[1762213870635,0.24403002,106530.0,106520.0,0.32954]
[1762213870941,0.24403002,106530.0,106520.0,0.4234393]
[1762213871446,0.24403002,106530.0,106520.0,0.32954]
[1762213872849,0.24403002,106530.0,106520.0,0.4264393]
[1762213873256,0.33718954,106530.0,106520.0,0.33254]
[1762213873440,0.69798954,106530.0,106520.0,0.003]
[1762213873635,0.71186225,106530.0,106520.0,0.003]
[1762213874345,1.01302974,106530.0,106520.0,0.003]
[1762213874847,1.27073152,106530.0,106520.0,0.003]
[1762213875860,0.59052082,106530.0,106520.0,0.0968993]
[1762213876149,0.47433952,106530.0,106520.0,0.1012393]
[1762213876353,0.4835844,106530.0,106520.0,0.1012393]
[1762213876850,0.1593844,106530.0,106520.0,0.4600393]
[1762213877552,0.2532748,106530.0,106520.0,0.0992393]
[1762213877744,0.1593844,106530.0,106520.0,0.0992393]
[1762213877942,0.1593844,106530.0,106520.0,0.4600393]
[1762213878347,0.15013952,106530.0,106520.0,0.87743882]
[1762213878655,0.05698,106530.0,106520.0,0.87743882]
[1762213880144,0.05698,106530.0,106520.0,0.97059834]
[1762213880739,0.05698,106530.0,106520.0,0.87743882]
[1762213880942,0.15013952,106530.0,106520.0,0.87743882]
[1762213881145,0.05698,106530.0,106520.0,0.87743882]
[1762213881549,0.05698,106530.0,106520.0,0.94455346]
[1762213881746,0.05698,106530.0,106520.0,1.03771298]
[1762213881956,0.05698,106530.0,106520.0,0.97059834]
[1762213882355,0.03603,106550.0,106540.0,0.00534]
[1762213882560,0.05738,106550.0,106540.0,1.33138074]
[1762213883754,0.05738,106550.0,106540.0,1.23822122]
[1762213885060,0.15076952,106570.0,106560.0,0.0992041]
[1762213885251,0.05761,106570.0,106560.0,1.23816362]
[1762213885853,0.15076952,106570.0,106560.0,1.23816362]
[1762213886252,0.05761,106570.0,106560.0,1.23816362]
[1762213887661,0.15076952,106570.0,106560.0,1.1450041]
[1762213888455,0.05761,106570.0,106560.0,1.1450041]
[1762213890760,0.26778331,106570.0,106560.0,0.68496]
[1762213890967,0.1521041,106560.0,106550.0,0.00534]
[1762213891165,0.26842211,106560.0,106550.0,0.4233729]
[1762213891370,0.1521041,106560.0,106550.0,0.4233729]
[1762213891561,0.26842211,106560.0,106550.0,0.4233729]
[1762213892263,0.05824,106560.0,106550.0,0.7841729]
[1762213892570,0.1521041,106560.0,106550.0,0.7841729]
[1762213893571,0.26842211,106560.0,106550.0,0.7841729]
[1762213894571,0.26842211,106560.0,106550.0,0.4233729]
[1762213894770,0.26842211,106560.0,106550.0,0.3295]
[1762213895068,0.26842211,106560.0,106550.0,0.423373]
[1762213895555,0.26842211,106560.0,106550.0,0.3295]
[1762213895965,0.26842211,106560.0,106550.0,0.4207029]
[1762213896165,0.26842211,106560.0,106550.0,0.4233729]
[1762213896963,0.1521041,106560.0,106550.0,0.4233729]
[1762213897168,0.05824,106560.0,106550.0,0.7841729]
[1762213900363,0.05792,106570.0,106560.0,0.099204]
[1762213900565,0.05792,106570.0,106560.0,0.460004]
[1762213900764,0.1517751,106570.0,106560.0,0.460004]
[1762213902073,0.26809311,106570.0,106560.0,0.460004]
[1762213902274,0.26809311,106570.0,106560.0,0.00534]
[1762213902469,0.1521041,106560.0,106550.0,0.7841666]
[1762213902777,0.26842211,106560.0,106550.0,0.7841666]
[1762213903177,0.26842211,106560.0,106550.0,0.7841266]
[1762213903770,0.05824,106560.0,106550.0,0.7841266]
[1762213905373,0.152104,106560.0,106550.0,0.7841266]
[1762213905870,0.26842201,106560.0,106550.0,0.7841266]
[1762213906862,0.26842201,106560.0,106550.0,0.69026]
[1762213907270,0.26842201,106560.0,106540.0,0.4573517]
[1762213907271,0.1393229,106550.0,106540.0,0.4573517]
[1762213907467,0.26871091,106550.0,106540.0,0.7841417]
[1762213908077,0.05852,106550.0,106540.0,0.7841417]
[1762213910272,0.05852,106550.0,106540.0,0.85113874]
[1762213910576,0.15160583,106550.0,106540.0,0.94422457]
[1762213911671,0.15160583,106550.0,106540.0,0.85113874]
[1762213912376,0.24547873,106550.0,106540.0,0.85113874]
[1762213912574,0.15160583,106550.0,106540.0,0.85113874]
[1762213913481,0.05852,106550.0,106540.0,0.85113874]
[1762213913680,0.15160583,106550.0,106540.0,0.85113874]
[1762213913879,0.15160583,106550.0,106540.0,0.7841417]
[1762213914380,0.15160583,106550.0,106540.0,0.87722753]
[1762213923384,0.03575,106570.0,106560.0,0.00534]
[1762213923574,0.05876,106580.0,106570.0,0.0991953]
[1762213923780,0.34505402,106590.0,106580.0,0.0991865]
[1762213923781,0.05852,106590.0,106580.0,0.0991865]
[1762213923980,0.17463924,106590.0,106580.0,0.87719233]
[1762213924279,0.15160583,106590.0,106580.0,0.7841065]
[1762213924486,0.24544343,106590.0,106580.0,0.7841065]
[1762213925282,0.15160583,106590.0,106580.0,0.7841065]
[1762213926184,0.05852,106590.0,106580.0,0.87719233]
[1762213926583,0.15160583,106590.0,106580.0,0.7841065]
[1762213926782,0.05852,106590.0,106580.0,0.87719233]
[1762213927288,0.15160583,106590.0,106580.0,0.87719233]
[1762213928792,0.20935619,106600.0,106590.0,0.0991776]
[1762213928793,0.15160583,106600.0,106590.0,0.0991776]
[1762213928994,0.05852,106600.0,106590.0,0.4599776]
[1762213929288,0.24543463,106600.0,106590.0,0.4599776]
[1762213929490,0.15160583,106600.0,106590.0,0.4599776]
[1762213929990,0.05852,106600.0,106590.0,0.55306343]
[1762213930487,0.05852,106600.0,106590.0,0.4599776]
[1762213931688,0.003,106610.0,106600.0,0.0991689]
[1762213931886,0.02544,106610.0,106600.0,0.87704372]
[1762213932192,0.1553401,106610.0,106600.0,0.7840489]
[1762213932987,0.06152,106610.0,106600.0,0.7840489]
[1762213935087,0.03851,106610.0,106600.0,0.7840489]
[1762213935294,0.06039,106610.0,106600.0,0.7840489]
[1762213936692,0.003,106610.0,106600.0,0.7840489]
[1762213939995,0.11977,106610.0,106600.0,0.7839689]
[1762213940297,0.15467,106610.0,106600.0,0.4231688]
[1762213941199,0.06085,106610.0,106600.0,0.7839688]
[1762213942498,0.15467,106610.0,106600.0,0.7839688]
[1762213943095,0.06085,106610.0,106600.0,0.7839688]
[1762213943593,0.15467,106610.0,106600.0,0.7839688]
[1762213944394,0.15467,106610.0,106600.0,0.7839288]
[1762213944996,0.06085,106610.0,106600.0,0.7839288]
[1762213947106,0.15467,106610.0,106600.0,0.7839288]
[1762213947408,0.32514673,106610.0,106600.0,0.00534]
[1762213947802,0.32514673,106610.0,106600.0,0.3293]
[1762213948808,0.15467,106610.0,106600.0,0.4231288]
[1762213949009,0.32514673,106610.0,106600.0,0.4231288]
[1762213949203,0.15467,106610.0,106600.0,0.4231288]
[1762213951511,0.32514673,106610.0,106600.0,0.3293]
[1762213952113,0.32514673,106610.0,106600.0,0.4231289]
[1762213952313,0.24768196,106610.0,106600.0,0.4231289]
[1762213952816,0.1512089,106600.0,106590.0,0.0991777]
[1762213953008,0.24422086,106600.0,106590.0,0.4230977]
[1762213953204,0.05738,106600.0,106590.0,0.7838977]
[1762213954107,0.05738,106600.0,106590.0,0.87690966]
[1762213954713,0.05738,106600.0,106590.0,0.7838977]
[1762213955418,0.24422086,106600.0,106590.0,0.7838977]
[1762213960427,0.24422086,106600.0,106590.0,0.4599777]
[1762213960626,0.24422086,106600.0,106590.0,0.7838977]
[1762213962111,0.1512089,106600.0,106590.0,0.7838977]
[1762213962523,0.24422086,106600.0,106590.0,0.7838977]
[1762213963023,0.24422086,106600.0,106590.0,0.4230977]
[1762213966422,0.26721934,106600.0,106580.0,0.4546397]
[1762213966627,0.69902162,106590.0,106580.0,0.00534]